Cogmind - Beta 15 @@@ ROGUE MODE // 2025.09.09 @ 12:35:26 Player: Godsword Result: Self-destructed Performance ------------- Evolutions (2) 1000 Regions Visited (3) 600 Robots Destroyed (24) 120 Value Destroyed (494) 494 Prototype IDs (2) 40 Alien Tech Used (0) 0 Bonus (0) 0 TOTAL SCORE: 2254 Bonus ------- None Cogmind --------- Core Integrity 409/550 Matter 98/300 Energy 140/140 System Corruption 0% Temperature Cool (9) Movement Core (500) Ox9 Location -8/Materials Parts ------- > --- POWER (1) -------- Light Deuterium Engine > --- PROPULSION (4) --- (None) > --- UTILITY (4) ------ Large Storage Unit Structural Scanner Improved Terrain Scanner Improved Terrain Scan Processor > --- WEAPON (2) ------- Heavy Mace > --- INVENTORY (15) --- Light Ion Engine Light Ion Engine Nuclear Core Hover Unit Improved Heat Sink Small Storage Unit Compact Matter Pod (0) Visual Processing Unit Improved Terrain Scanner Improved Terrain Scan Processor Light Armor Plating Improved Light Cannon Improved Light Cannon Plasma Cutter Plasma Cutter Peak State ------------ > --- POWER ------------ Light Deuterium Engine > --- PROPULSION ------- Compact Wheel Compact Wheel > --- UTILITY ---------- Large Storage Unit Structural Scanner Improved Terrain Scanner Improved Terrain Scan Processor > --- WEAPON ----------- Grenade Launcher Heavy Mace > --- INVENTORY -------- Light Ion Engine Light Ion Engine Nuclear Core Hover Unit Improved Heat Sink Small Storage Unit Compact Matter Pod Visual Processing Unit Improved Terrain Scanner Improved Terrain Scan Processor Light Armor Plating Improved Light Cannon Improved Light Cannon Plasma Cutter Plasma Cutter [Rating: 20] Favorites ----------- Power Light Ion Engine Engine Light Ion Engine Power Core Nuclear Core Propulsion Compact Wheel Wheel Compact Wheel Utility Improved Terrain Scanner Device Improved Terrain Scanner Storage Large Storage Unit Processor Improved Terrain Scan Processor Weapon Grenade Launcher Energy Gun EM Pulse Gun Ballistic Cannon Improved Light Cannon Launcher Grenade Launcher Impact Weapon Heavy Mace Build | -11 -10 -9 -8 ------- Run | Yrd Mat Mat Mat Slots Evolved 4 | . . 2 2 Power . | . . . . Propulsion 2 | . . 1 1 Utility 2 | . . 1 1 Weapon . | . . . . Parts Attached 18 | 8 4 4 2 Power 4 | 2 . 1 1 Engine 3 | 2 . . 1 Core 1 | . . 1 . Reactor . | . . . . Propulsion 2 | 2 . . . Treads . | . . . . Leg . | . . . . Wheel 2 | 2 . . . Hover . | . . . . Flight . | . . . . Utility 6 | 2 1 3 . Device 2 | 1 . 1 . Storage 2 | 1 1 . . Processor 2 | . . 2 . Hackware . | . . . . Protection . | . . . . Artifact . | . . . . Weapon 6 | 2 3 . 1 Energy Gun 2 | 2 . . . Energy Cannon . | . . . . Ballistic Gun . | . . . . Ballistic Cannon 1 | . 1 . . Launcher 2 | . 2 . . Special Weapon . | . . . . Impact Weapon 1 | . . . 1 Slashing Weapon . | . . . . Piercing Weapon . | . . . . Special Melee Weapon . | . . . . Unidentified Prototypes . | . . . . Corrupted Parts 1 | 1 . . . System Corruption 1 | 1 . . . Parts Lost 3 | . . . 3 Power . | . . . . Propulsion 2 | . . . 2 Utility . | . . . . Weapon 1 | . . . 1 Highest Loss Streak 3 | . . . 3 To Critical Strikes . | . . . . Average Backups 10 | . 7 12 14 Power 1 | . 1 2 3 Propulsion . | . . 1 1 Utility 4 | . 3 4 6 Weapon 2 | . 1 2 2 Tool/Special . | . . . . Unused Backups 14 | . 2 2 10 Power 1 | . . . 1 Propulsion 1 | . . . 1 Utility 6 | . 1 1 4 Weapon 4 | . 1 1 2 Tool/Special 2 | . . . 2 Average Slot Usage (%) 89 | . 98 88 79 Engine 10 | . 14 10 7 Wheel 22 | . 28 22 16 Device 16 | . 14 17 18 Storage 11 | . 14 11 9 Processor 4 | . . 4 9 Energy Gun 3 | . 12 . . Ballistic Cannon 8 | . 6 11 5 Launcher 9 | . 7 11 9 Peak Build Rating 20 | 9 12 17 20 Average Rating 13 | 6 10 13 19 On Entrance 9 | . 9 12 17 Naked Turns . | . . . . Heaviest Build 36 | 13 31 35 36 Greatest Support 32 | 32 32 32 32 Greatest Overweight (x) 1 | . . 1 1 Average Overweight (x) . | . . . 1 Largest Inventory Capacity 15 | 8 15 15 15 Average Capacity 13 | 7 9 15 15 Most Carried 15 | 3 12 15 15 Average Carried 10 | . 8 12 14 Final Capacity 15 | 8 15 15 15 Final Carried 15 | 3 12 15 15 Class Distribution -------------------- 79% | Mutant 12% | Skirmisher 7% | Assassin Dominant Class ---------------- Mutant | -10/Materials Mutant | -9/Materials Skirmisher | -8/Materials Resources | -11 -10 -9 -8 ----------- Run | Yrd Mat Mat Mat Matter Collected 501 | 240 28 233 . Remotely . | . . . . Salvage Created 584 | 126 28 378 52 Parts 46 | 9 4 30 3 Haulers Intercepted . | . . . . Recyclers Shooed 3 | . . 3 . Parts Field Recycled . | . . . . Retrieved Matter . | . . . . Parts Self-Destructed . | . . . . Prevented . | . . . . Kills | -11 -10 -9 -8 ------- Run | Yrd Mat Mat Mat Combat Hostiles Destroyed 11 | . . 10 1 Cannons 1 | . . 1 . AOE 10 | . . 9 1 Classes Destroyed 9 | 2 2 4 1 Worker 3 | . . 2 1 Builder 1 | . . . 1 Tunneler 2 | 2 . . . Recycler 2 | 1 . 1 . Operator 1 | . 1 . . Watcher 4 | . 1 3 . Swarmer 3 | . . 3 . Grunt 3 | . . 3 . Sentry 5 | . . 4 1 Best Kill Streak 9 | 3 1 9 3 Combat Bots Only 3 | . . 3 1 Max Kills in Single Turn 3 | 1 1 3 1 Gunslinging . | . . . . Exploded 3 | . . 3 1 Melee . | . . . . Uniques/NPCs Destroyed . | . . . . Combat | -11 -10 -9 -8 -------- Run | Yrd Mat Mat Mat Hostile Shots Fired 40 | . . 16 24 Missed 15 | . . 7 8 Hits 25 | . . 9 16 Projectile 25 | . . 9 16 Critical Strikes 1 | . . . 1 Damage Taken 484 | . . 161 323 Core 203 | . . 62 141 Absorbed by Shields . | . . . . Core Remaining (%) 94 | 100 100 84 . Volleys Fired 39 | 7 2 22 8 Largest 2 | 2 2 2 1 Hottest 80 | 80 80 63 30 Shots Fired 64 | 14 4 38 8 Gun 18 | 14 4 . . Cannon 22 | . . 22 . Launcher 24 | . . 16 8 Special . | . . . . Kinetic 22 | . . 22 . Thermal . | . . . . Explosive 24 | . . 16 8 Electromagnetic 18 | 14 4 . . Robot Hit Streak 14 | 3 2 13 14 Robot Miss Streak 3 | 3 1 3 2 Penetration Max . | . . . . Secondary Targets . | . . . . Shots Hit Robots 34 | 7 2 19 6 Core Hits 40 | 4 2 26 8 Critical Kills . | . . . . Critical Parts Destroyed . | . . . . Critical Strikes 1 | . . 1 . Blast 1 | . . 1 . Melee Attacks 1 | . . . 1 Impact 1 | . . . 1 Slashing . | . . . . Piercing . | . . . . Sneak Attacks . | . . . . Combat Hostiles . | . . . . Follow-up Attacks . | . . . . Damage Inflicted 1265 | 90 62 871 242 Guns 127 | 90 37 . . Cannons 263 | . . 263 . Explosions 875 | . 25 608 242 Melee . | . . . . Ramming . | . . . . Kinetic 263 | . . 263 . Thermal 25 | . 25 . . Explosive 850 | . . 608 242 Electromagnetic 127 | 90 37 . . Impact . | . . . . Slashing . | . . . . Piercing . | . . . . Highest Corruption 1 | 1 1 . . Average Corruption 1 | 1 1 . . Corruption Purged . | . . . . Corruption Blocked . | . . . . Overload Shots . | . . . . Overflow Damage 25 | . . 16 9 Projectiles . | . . . . Explosions 25 | . . 16 9 Melee . | . . . . Knockbacks 3 | . . 3 . Impact . | . . . . Kinetic 3 | . . 3 . Secondary . | . . . . Self-Inflicted Damage 94 | . . 32 62 Shots 3 | . . 1 2 Rammed . | . . . . Targets Rammed . | . . . . Kicked . | . . . . Crushed . | . . . . Highest Temperature 54 | 54 18 7 17 Average Temperature 20 | 26 12 3 12 Received Heat Transfer 99 | . . 45 54 Siege Activations . | . . . . Martial Activations . | . . . . Shielding Activations . | . . . . Robots Disrupted . | . . . . Combat Hostiles . | . . . . Robots Corrupted . | . . . . Combat Hostiles . | . . . . Parts Fried 1 | . 1 . . Impact Corruptions . | . . . . Robots Melted . | . . . . Combat Hostiles . | . . . . Parts Melted . | . . . . Heat Transferred . | . . . . Parts Sabotaged . | . . . . Parts Stolen . | . . . . Parts Stripped . | . . . . Power Chain Reactions 1 | . 1 . . Alert | -11 -10 -9 -8 ------- Run | Yrd Mat Mat Mat Maximum Alert Level 1 | . . 1 . Low Security (%) 68 | 100 100 35 100 Level 1 31 | . . 64 . Level 2 . | . . . . Level 3 . | . . . . Level 4 . | . . . . Level 5 . | . . . . High Security . | . . . . Max Security . | . . . . Peak Influence 273 | 5 12 273 102 Initial 102 | . 3 . 102 Average 100 | 2 1 179 75 Influence Increases 522 | 15 17 423 67 Destroy 0b10 Robot/C 220 | . . 200 20 Destroy 0b10 Robot/NC 65 | 15 10 30 10 Destroy Leader 78 | . 2 66 10 Successful Hack 16 | . . 16 . Disable Machine 15 | . . 15 . Destroy Structure 113 | . 5 81 27 Lose Combat Pursuer 15 | . . 15 . Influence Decreases 443 | 10 22 180 231 Entered New Map 143 | . 2 . 141 Time Decay 270 | 10 20 180 60 Lost Part 30 | . . . 30 Squads Dispatched 1 | . . . 1 Investigation . | . . . . Extermination . | . . . . Reinforcement 1 | . . . 1 Assault . | . . . . Garrison . | . . . . Intercept . | . . . . Searches Triggered . | . . . . Construction Impeded 1 | . . . 1 Haulers Reinforced . | . . . . Active Scanning Responses . | . . . . Cargo Convoy Interrupts . | . . . . Stealth | -11 -10 -9 -8 --------- Run | Yrd Mat Mat Mat Distress Signals 1 | . . 1 . Communications Jammed . | . . . . Distress Signals . | . . . . Times Spotted 18 | . 1 12 5 Peak Tracking Total 6 | . 1 4 6 Tactical Retreats 1 | . . 1 . Traps | -11 -10 -9 -8 ------- Run | Yrd Mat Mat Mat Traps Triggered . | . . . . Indirectly . | . . . . Trap Hack Attempts . | . . . . Triggered . | . . . . Disarmed . | . . . . Reprogrammed . | . . . . Reused . | . . . . Traps Extracted . | . . . . Installed . | . . . . Triggered . | . . . . Machines | -11 -10 -9 -8 ---------- Run | Yrd Mat Mat Mat Machines Disabled 1 | . . 1 . Max in Single Turn 1 | . . 1 . Machines Repaired . | . . . . Machines Dismantled . | . . . . Machines Sabotaged . | . . . . Overloaded Fab Kills . | . . . . Hacking | -11 -10 -9 -8 --------- Run | Yrd Mat Mat Mat Machines Accessed 4 | . 1 2 1 Terminals 3 | . 1 2 . Fabricators . | . . . . Repair Stations . | . . . . Recycling Units 1 | . . . 1 Scanalyzers . | . . . . Garrison Access . | . . . . Total Hacks 7 | . 2 4 1 Successful 3 | . . 2 1 Failed 4 | . 2 2 . Catastrophic 2 | . 2 . . Database Lockouts . | . . . . Manual . | . . . . Terminals 6 | . 2 4 . Fabricators . | . . . . Repair Stations . | . . . . Recycling Units 1 | . . . 1 Scanalyzers . | . . . . Garrison Access . | . . . . Terminal Hacks 2 | . . 2 . Prototype ID Bank 1 | . . 1 . Registered Components 1 | . . 1 . Fabricator Hacks . | . . . . Repair Station Hacks . | . . . . Recycling Unit Hacks 1 | . . . 1 Retrieve Components 1 | . . . 1 Scanalyzer . | . . . . Garrison Access Hacks . | . . . . Unauthorized Hacks . | . . . . Terminals . | . . . . Fabricators . | . . . . Repair Stations . | . . . . Recycling Units . | . . . . Scanalyzers . | . . . . Garrison Access . | . . . . Data Cores Recovered 1 | . 1 . . Used . | . . . . Hacking Detections 3 | . 1 2 . Full Trace Events 1 | . 1 . . Feedback Events . | . . . . Feedback Blocked . | . . . . Robot Schematics Acquired . | . . . . Robots Built . | . . . . Authchips . | . . . . Time . | . . . . Total Robot Build Rating . | . . . . Part Schematics Acquired . | . . . . Parts Built . | . . . . Authchips . | . . . . Time . | . . . . Total Part Build Rating . | . . . . Parts Repaired . | . . . . Time . | . . . . Parts Recycled . | . . . . Recycled Matter . | . . . . Retrieved Matter . | . . . . Retrieved Components 2 | . . . 2 Parts Scanalyzed . | . . . . Part Schematics Acquired . | . . . . Parts Damaged . | . . . . Bothacking | -11 -10 -9 -8 ------------ Run | Yrd Mat Mat Mat Used RIF Installer . | . . . . Robots Hacked . | . . . . Non-combat . | . . . . Combat . | . . . . Robot Hacks Applied . | . . . . Relay Couplers Released . | . . . . Fabnet Peak Effective % . | . . . . Robots Rewired . | . . . . Allies Hacked . | . . . . Hacks Repelled . | . . . . Allies | -11 -10 -9 -8 -------- Run | Yrd Mat Mat Mat Total Allies . | . . . . Largest Group . | . . . . Highest-Rated Group . | . . . . Highest-Rated Ally . | . . . . Total Orders . | . . . . Ally Attacks . | . . . . Total Damage . | . . . . Kills . | . . . . Allies Corrupted . | . . . . Allies Melted . | . . . . Intel | -11 -10 -9 -8 ------- Run | Yrd Mat Mat Mat Active Infowar (turns) 730 | 41 185 368 136 Terrain 730 | 41 185 368 136 Structural 339 | . . 203 136 Robot Analysis Total . | . . . . Derelict Logs Recovered . | . . . . Drone Launches . | . . . . Drone Recoveries . | . . . . Exploration | -11 -10 -9 -8 ------------- Run | Yrd Mat Mat Mat Turns Passed 765 | 76 185 368 136 Spaces Moved 561 | 41 141 282 97 Core 1 | 1 . . . Treads . | . . . . Legs . | . . . . Wheels 560 | 40 141 282 97 Hover . | . . . . Flight . | . . . . Fastest Speed 50 | 50 100 100 115 Average Speed 102 | 98 100 100 115 Slowest Speed 115 | 100 100 115 115 Overloaded Moves . | . . . . Propulsion Burnouts . | . . . . Robots Hopped . | . . . . Potential Cave-ins . | . . . . Cave-ins Triggered . | . . . . Exploration Rate (%) 17 | 3 22 35 11 Regions Visited 3 Branch Regions . Pre-discovered Areas . | . . . . Known Exits Taken . | . . . . Unknown Exits Taken 3 | 1 1 1 . Scrap Searched . | . . . . Spaces Dug 1 | . . . 1 Terrain Destroyed 162 | . 5 93 64 Melee 1 | . . . 1 Projectile 3 | . . 3 . AOE 158 | . 5 90 63 Terrain Rammed . | . . . . Walls Destroyed . | . . . . Machines Disabled . | . . . . Actions | -11 -10 -9 -8 --------- Run | Yrd Mat Mat Mat Total 679 | 58 182 328 111 Wait 31 | . 19 12 . Move 558 | 40 140 281 97 Hop . | . . . . Pick Up 20 | 3 11 5 1 Fast Attach 12 | 7 3 1 1 Attach 2 | . . 1 1 Detach 1 | . . 1 . Swap 5 | 1 1 2 1 Drop 10 | . 6 3 1 Fire 39 | 7 2 22 8 Melee 1 | . . . 1 Ram . | . . . . Kick . | . . . . Crush . | . . . . Escape Stasis . | . . . . Rewire . | . . . . Trap . | . . . . Miscellaneous . | . . . . Route ------- -11/Scrapyard -10/Materials -9/Materials -8/Materials History --------- Turn | Location | Event 5 | -11/Scrapyard | Discovered new exit (range 16) 77 | -11/Scrapyard | Entered Materials 203 | -10/Materials | Discovered new exit (range 12) 262 | -10/Materials | Entered another Materials area 262 | -9/Materials | Evolved 2 slots: Propulsion x1, Utility x1 302 | -9/Materials | Build established: Mutant 594 | -9/Materials | Discovered new exit (range 8) 630 | -9/Materials | Entered another Materials area 630 | -8/Materials | Evolved 2 slots: Propulsion x1, Utility x1 766 | -8/Materials | Self-destructed Last Messages --------------- 00746_ H-55 Commando unfolds itself. 00746_ Slug penetrates Terminal. 00746_ Terminal disabled. 00750_ Penetrated by Slug. 00750_ U-05 Engineer destroyed. 00750_ ALERT: Construction progress impeded, dispatching reinforcements to local area. 00754_ Critical hit (Burn: +37). 00754_ Com. Wheel destroyed. 00754_ Destroyed Com. Wheel. 00754_ Slug penetrates Earth. 00757_ Penetrated by Slug. 00759_ Com. Wheel destroyed. 00760_ K-01 Serf destroyed. 00761_ The unstable cave ceiling collapses. 00762_ Penetrated by Slug. 00762_ Y-45 Defender destroyed. 00764_ The unstable cave ceiling collapses. 00766_ Grenade Launcher destroyed. 00766_ Penetrated by Slug. Map ----- +----------------------------------------------------+ | ?????????????????????????????????????????????????? | | ?????????????????????????????????????? ?? ???"???? | | ????????????????????????????????????????????? ?? # | | ?????????????????????????????????????? ????????#?? | | ????????????????????????????????????????????##??#? | | ???????????????????????????????????#???????#?????? | | ?????????????????????????????????????? ???????#?## | | ???????????????????????????????????## ????#??#?#?? | | ???????????????????????????????????## ?#?#?#?##??? | | ???????????????????????????????????## ?????????#? | | ???????????????????? ?? ?????#?##?## ??###???#??? | | ??????????????????? ??? ????######### ########### | | ??????????????????? ? ?? ???######### ########### | | ?????????????????? ??? ? ? | | ??????????????????? ? ? ??? | | ??????????????#????? ?? ?? | | ??????????????? ? ?? ??? ? ? ###### | | ??????????????## ????#?????#?########### ##### | | ???????????##?## ??????#???############## ##### | | ??????????????## ????#?###?#??#??##?#?## ##?## | | ??????????????## ??#????#############?## ##?## | | ???????????#??## ?##???################# ##### | | ????????????#### ######## ####### ##### | | ???????######### ####### # #### ##### | | ??????? ####### #### ##### # | | ??????? " h @ Y *%w rr " # "" | | ?????? "% w u # ## # """ | | ?????? " # ## # | | ??????? ??##### ##### ## #### ### | | ??????????############### ## #### #### ###] ! | | ???????????#?######???? ############ #### ### | | ????????????? ???? ??? ### #####+# | | ???????? ? ??? ???? ? | ### # | | ???????????? ????????? ### #### # | | ?????????????###???? ############+####+#### # | | ???????????#?#?#?????? ######## ### # | | ?????????#???#???#?###? ##???### " """"" ### # | | ???????????????###??## ?##?##### ??"""""""" ### # | | ??????????????????????? #?#?#?## """ """ ### # | | ???????????????????#??? ?##???## ### # | | ????????????????#????????#???################## # | | ??????????????????#?????##? ????## ##### # | | ????????????????????#????????????#?? ??? ??## | | ?????????????????????????????????? ? ??????? | | ?????????????????????????????????? ??"??? ??#? | | ?????????????????????????????? #?? ???? ????# | | ???????????????????????????????????????? #??## # | | ??????????????????????????????????? ?????????## # | | ??????????????????????????????????????""?????????? | | ???????????????????????????????????????? ????????? | +----------------------------------------------------+ Best States ------------- Heat Dissipation 31 Energy Generation 14 Energy Capacity 240 Matter Stores 288 Matter Capacity 300 Sight Range 16 Terrain Scan Range 16 Terrain Scan Density 110 Evasion (%) 40 Item Schematics ----------------- None Robot Schematics ------------------ None Fabricated ------------ Nothing Repaired ---------- Nothing Alien Tech Used ----------------- None Achievements -------------- None Challenges ------------ None Game ------ Seed 0000000000000000000000000001 Manual? 1 Play Time 00:10:59 Cumulative 18.0 hours Start 2025.09.09 @ 12:26:18 End 2025.09.09 @ 12:35:26 Sessions 1 Manual Loads 0 Difficulty Rogue Special Mode None Game No. 55 Rogue 55 Adventurer 0 Explorer 0 Win Type - Total 0 Types 0/0/0/0/0/0/0/0/0/0 Lore% 17 Gallery% 22 Achievement% 25 Wizard Run 0 Options --------- Layout 2 ASCII 0 Keyboard 0 Movement Mouse Keybinds 0 Fullscreen 2 Font 24/Smallcaps Map View 50x44 Zoom Use 0% Tactical HUD 1 Map Filters NONE Filters NONE Steam 1 RUN: 171a1fdc-0a7a-43c5-96a6-db00c0c71692